[Event "European Women-ch 2023"]
[Site "Petrovac"]
[Date "2023.03.19"]
[Round "2.9"]
[White "Makka, Ioulia"]
[Black "Mayrhuber, Nikola"]
[Result "1-0"]
[ECO "B90"]
[WhiteElo "1949"]
[BlackElo "2162"]
[Annotator "TA"]
[PlyCount "83"]
[EventDate "2023.03.15"]
[EventType "swiss"]
[EventCountry "MNE"]
[SourceTitle "playchess.com"]
[Source "ChessBase"]
[SourceQuality "1"]
[TimeControl "40/5400+30:1800+30"]

{[%evp 12,83,20,17,34,-4,-7,0,0,-10,-6,-27,-13,-35,-44,-104,-18,-17,-28,-31,-19,-18,-14,-17,-21,-30,-9,-25,22,-10,11,11,18,4,53,0,0,0,35,0,16,0,0,-16,6,10,12,0,50,0,38,27,148,141,141,132,126,33,52,-11,155,64,64,-514,626,602,583,580,585,573,930,910,1113,1002]} 1. e4 {[%emt 0:00:03]} c5 {[%emt 0:00:05]} 2. Nf3 {[%emt 0:00:04]} d6 {[%emt 0:00:06]} 3. d4 {[%emt 0:00:08]} cxd4 {[%emt 0:00:07]} 4. Nxd4 {[%emt 0:00:05]} Nf6 {[%emt 0:00:06]} 5. Nc3 {[%emt 0:00:06]} a6 {[%emt 0:00:03]} 6. h3 {[%emt 0:00:11]} e5 {[%emt 0:00:10] 6...e5 scores better than 6...e6.} 7. Nde2 {[%emt 0:00:08]} h5 {[%emt 0:01:08] B90: Sicilian Najdorf: Unusual White 6th moves, 6 Be3 Ng4 and 6 Be3 e5.} 8. Ng1 {[%emt 0:00:25]} b5 {[%emt 0:05:09] 8...Nbd7 is vanishing.} 9. Nf3 {[%emt 0:00:22]} Bb7 {[%emt 0:01:24] The position is equal.} 10. Ng5 {[%emt 0:00:13]} Be7 {[%emt 0:01:32]} 11. a3 {[%emt 0:03:35]} Nbd7 {[%emt 0:03:23] [#]} 12. Be3 $146 {[%emt 0:12:21]} ({Predecessor:} 12. Bd3 h4 13. Be3 Rc8 14. O-O d5 15. exd5 Rxc3 16. bxc3 Nxd5 17. Ne4 f5 18. Nd6+ Bxd6 19. Bxf5 {0-1 Osmanodja,F (2243)-Bogner,S (2586) Rome City op 2nd 2017 (2)}) 12... Rc8 {[%emt 0:07:52][%cal Od6d5] White must now prevent ...d5!} 13. Be2 {[%emt 0:22:21] Repels d5} (13. Qf3 $15) 13... Nb6 {[%emt 0:13:35]} (13... d5 $1 $17 {[%cal Rd5d4] Strongly threatening ...d4.} 14. exd5 Rxc3 15. bxc3 Nxd5) 14. O-O $11 {[%emt 0:06:51]} Nc4 {[%emt 0:09:20]} 15. Bc1 {[%emt 0:02:57]} d5 {[%emt 0:07:03]} 16. exd5 {[%emt 0:03:19]} Nxd5 {[%emt 0:02:16]} 17. Nge4 {[%emt 0:09:44]} (17. Nxd5 {looks sharper.} Bxg5 18. Bxg5 Qxg5 19. Bxc4 Rxc4 20. Re1) 17... Nxc3 {[%emt 0:03:21]} (17... O-O {seems wilder.} 18. Re1 Nxc3 19. Nxc3 Qb6) 18. Nxc3 {[%emt 0:01:32]} Qxd1 {[%emt 0:04:24]} (18... O-O {feels hotter.} 19. Re1 Qb6 20. Nd5 Bxd5 21. Qxd5 Rfd8) 19. Nxd1 {[%emt 0:04:00]} (19. Rxd1 Nxa3 20. Bd3 O-O $17) 19... e4 {[%emt 0:02:26]} (19... g6 $142) 20. b3 {[%emt 0:02:46]} Ne5 {[%emt 0:00:19]} (20... Nd2 $5 21. Bxd2 Rxc2 $11) 21. Ne3 {[%emt 0:00:43]} Bc5 {[%emt 0:02:27]} 22. Ra2 {[%emt 0:01:50]} Nc6 {[%emt 0:03:47]} (22... O-O $11) 23. c4 {[%emt 0:06:43]} ({White should play} 23. Rd1 $14) 23... Nd4 {[%emt 0:01:08]} 24. Bd1 {[%emt 0:00:15]} Ba7 {[%emt 0:03:13]} 25. Bd2 {[%emt 0:03:46]} f5 {[%emt 0:02:08]} 26. cxb5 {[%emt 0:03:30]} (26. a4 $5 {[%cal Ra4b5]} bxc4 27. Nxc4 $11) 26... axb5 {[%emt 0:00:31]} 27. Re1 {[%emt 0:04:55]} Kf7 {[%emt 0:05:33]} 28. a4 {[%emt 0:01:14]} f4 {[%emt 0:08:07]} 29. Nc2 {[%emt 0:02:34]} e3 {[%emt 0:01:44]} (29... Nxb3 30. Bxf4 Ra8 31. Ne3 (31. axb5 Bxf2+ {[%mdl 64] Discovered Attack} 32. Kxf2 Rxa2 $17) 31... bxa4 32. Rxa4 $14) (29... Nxc2 $1 $11 30. Bxc2 e3 31. fxe3 Rhd8 32. axb5 Rxd2 33. Rxa7 Rcxc2 34. Rxb7+ Kg6) 30. fxe3 {[%emt 0:01:04]} (30. Nxd4 $1 $14 exf2+ 31. Kxf2) 30... Nxb3 {[%emt 0:00:17]} 31. Bb4 {[%emt 0:00:37]} Be4 {[%emt 0:09:25]} (31... Nc1 $11 {keeps the balance.} 32. Ra3 Be4 33. axb5 {[%mdl 64] Discovered Attack} Bb6) 32. axb5 $16 {[%emt 0:01:19]} Bb6 {[%emt 0:00:22] [#]} 33. Ra6 $1 {[%emt 0:02:35]} Rh6 {[%emt 0:00:03] [#]} 34. Na3 {[%emt 0:01:27]} (34. Nd4 $1 $16 Nxd4 35. exd4 Bxd4+ 36. Kh2) 34... Nc1 $14 {[%emt 0:02:05]} 35. Bd2 {[%emt 0:00:59]} (35. Rxb6 $1 $14 Rxb6 36. exf4 (36. Bxh5+ g6 $14)) 35... Rd6 $2 {[%emt 0:01:45]} ({Black should try} 35... Nd3 $11 36. Bb3+ Kf8) 36. Bxh5+ {[%emt 0:01:45]} (36. Rxb6 $1 $16 Rxd2 37. exf4 (37. Bxh5+ g6 $11)) 36... g6 {[%emt 0:00:21]} 37. Bg4 $2 {[%emt 0:01:32][%mdl 8192]} (37. Bxc1 gxh5 38. Rxb6 Rxb6 39. exf4 Bd3 $15) (37. Rf1 $14 {keeps the upper hand.} Nb3 38. Rxf4+ Kg7 39. Rxb6 (39. Rxe4 Nxd2 40. Rg4 Bxe3+ 41. Kh2 Rxa6 $11) 39... Rxb6 40. Bg4) 37... fxe3 $4 {[%emt 0:01:14][%mdl 8192]} (37... Rxd2 $19 38. Rxb6 (38. Bxc8 $2 {too greedy.} Bxe3+ 39. Rxe3 fxe3 $19) 38... Rxg2+ 39. Kf1 f3) 38. Bxe3 {[%emt 0:00:35] White is clearly winning.} (38. Bxc8 {gets mated.} exd2+) 38... Bxe3+ {[%emt 0:00:55]} 39. Rxe3 {[%emt 0:00:12]} Rxa6 {[%emt 0:00:06]} 40. bxa6 {[%emt 0:00:00][%cal Bb5a6,Ba6a7][%mdl 32]} Bf5 {[%emt 0:00:00]} 41. Bf3 {[%emt 0:04:05]} Nd3 {[%emt 0:03:09]} 42. a7 {[%emt 0:01:39] Weighted Error Value: White=0.45/Black=0.41} 1-0

[Event "European Women-ch 2023"]
[Site "Petrovac"]
[Date "2023.03.19"]
[Round "2.10"]
[White "Antolak, Julia"]
[Black "Milliet, Sophie"]
[Result "1/2-1/2"]
[ECO "C59"]
[WhiteElo "2276"]
[BlackElo "2404"]
[Annotator "TA"]
[PlyCount "51"]
[EventDate "2023.03.15"]
[EventType "swiss"]
[EventCountry "MNE"]
[SourceTitle "playchess.com"]
[Source "ChessBase"]
[SourceQuality "1"]
[TimeControl "40/5400+30:1800+30"]

{[%evp 18,51,-9,-8,-1,0,25,0,29,23,16,20,22,-22,-21,-14,-27,-33,-33,-47,0,-54,-22,-164,-166,-161,-166,-156,-161,-139,0,-85,0,-157,0,-51]} 1. e4 {[%emt 0:00:03]} e5 {[%emt 0:00:06]} 2. Nf3 {[%emt 0:00:06]} Nc6 {[%emt 0:00:04]} 3. Bc4 {[%emt 0:00:08]} Nf6 {[%emt 0:00:13]} 4. Ng5 {[%emt 0:00:11]} d5 {[%emt 0:00:07]} 5. exd5 {[%emt 0:00:08]} Na5 {[%emt 0:00:03]} 6. Bb5+ {[%emt 0:00:08]} c6 {[%emt 0:00:06]} 7. dxc6 {[%emt 0:00:06]} bxc6 {[%emt 0:00:02]} 8. Be2 {[%emt 0:00:08]} h6 {[%emt 0:00:55]} 9. Nh3 $1 {[%emt 0:00:18][%mdl 4] now scores much better than the old 9.Nf3.} Bd6 {[%emt 0:05:47]} 10. d3 {[%emt 0:01:39]} O-O {[%emt 0:03:32] C59: Two Knights: 4 Ng5 d5 5 exd5 Na5 5 Bb5+ c6 6 dxc6 bxc6 7 Be2.} 11. O-O {[%emt 0:06:11]} Qc7 {[%emt 0:07:34]} 12. Kh1 {[%emt 0:06:30] [#]} Be6 $146 {[%emt 0:19:53]} ({Predecessor:} 12... Nb7 13. Nd2 Be6 14. c3 Rad8 15. Qc2 Bxh3 16. gxh3 Qd7 17. Rg1 Kh8 18. Nc4 Bc7 {1-0 Jackova,J (2245)-Tallova,I (2120) CZE-ch (Women) 1997 (2)}) 13. Nc3 {[%emt 0:08:46]} Rad8 {[%emt 0:00:31]} 14. Ng1 {[%emt 0:04:53]} Nd5 {[%emt 0:09:02]} 15. Nxd5 {[%emt 0:07:11]} cxd5 {[%emt 0:00:39]} 16. d4 {[%emt 0:00:21]} e4 {[%emt 0:01:38][%mdl 1024] Black has compensation.} 17. f4 {[%emt 0:03:40]} f5 {[%emt 0:05:57]} 18. c3 {[%emt 0:04:00]} Rd7 {[%emt 0:01:10]} (18... Rb8 $15 {is more appropriate.}) 19. Be3 {[%emt 0:04:21]} ({White should try} 19. Nh3 $11) 19... g5 {[%emt 0:06:16][%cal Rg5f4]} 20. fxg5 {[%emt 0:09:48]} (20. Qd2 $11) 20... hxg5 $19 {[%emt 0:19:16]} 21. Bxg5 {[%emt 0:03:37]} Bxh2 {[%emt 0:00:03]} 22. Nh3 {[%emt 0:04:54]} Rh7 {[%emt 0:00:11] Prevents Bh6.} 23. Bh5 {[%emt 0:01:34]} Bf7 {[%emt 0:05:30]} (23... Bg3 $17 {White must now prevent ...f4.} 24. Kg1 Nc4) 24. Be2 {[%emt 0:10:46]} (24. Rxf5 $11 {remains equal.} Bxh5 25. Rxf8+ Kxf8 26. Qf1+ Kg8 27. Qf5) 24... Be6 {[%emt 0:00:10]} (24... Bg6 $142 25. Qd2 f4 26. Kxh2 f3+ 27. g3 (27. Kh1 $2 Qg3 $19) 27... Kg7) 25. Bh5 $1 $17 {[%emt 0:00:04]} Bf7 {[%emt 0:00:03]} (25... Bg3 $17 {...f4 is the strong threat.} 26. Kg1 Nc4) 26. Be2 {[%emt 0:00:04] Weighted Error Value: White=0.27 (precise) /Black=0.46} 1/2-1/2

[Event "European Women-ch 2023"]
[Site "Petrovac"]
[Date "2023.03.19"]
[Round "2.10"]
[White "Hajiyeva, Laman"]
[Black "Velikic, Adela"]
[Result "1-0"]
[ECO "B51"]
[WhiteElo "2118"]
[BlackElo "2329"]
[Annotator "TA"]
[PlyCount "189"]
[EventDate "2023.03.15"]
[EventType "swiss"]
[EventCountry "MNE"]
[SourceTitle "playchess.com"]
[Source "ChessBase"]
[SourceQuality "1"]
[TimeControl "40/5400+30:1800+30"]

{[%evp 9,189,21,0,22,22,23,37,34,39,10,29,21,15,15,15,15,41,36,25,32,22,29,81,-36,0,0,33,-17,-11,-7,0,6,27,14,4,-39,68,49,78,47,113,102,106,95,95,99,114,105,204,208,185,0,0,0,0,-44,131,32,32,32,32,27,21,0,156,89,233,232,285,295,293,259,351,351,351,351,607,600,697,679,933,894,1249,1230,1161,1150,1093,1072,1378,1268,1838,1595,1601,366,371,367,360,353,371,368,357,357,364,364,625,625,625,421,625,625,625,618,618,618,618,618,618,610,610,603,596,589,589,589,589,514,589,589,566,552,589,589,589,589,596,537,804,783,775,0,768,768,754,589,746,667,817,0,581,532,817,796,739,691,933,904,29982,29983,29987,29988,29995,29992,29996,2077,29981,6930,6591,6610,6295,6160,5735,5700,4802,2177,29982,29983,29983,29984,29984,29985,29985,29986]} 1. e4 {[%emt 0:00:08]} c5 {[%emt 0:00:04]} 2. Nf3 {[%emt 0:00:08]} d6 {[%emt 0:05:18]} 3. Bb5+ {[%emt 0:00:12]} Nd7 {[%emt 0:01:17]} 4. O-O {[%emt 0:00:41]} a6 {[%emt 0:02:52]} 5. Be2 {[%emt 0:00:08]} Ngf6 {[%emt 0:02:55]} 6. d3 {[%emt 0:00:41] B51: Sicilian: Moscow Variation (3 Bb5+) without 3...Bd7.} g6 {[%emt 0:08:50]} 7. c4 {[%emt 0:01:49]} Bg7 {[%emt 0:13:12]} 8. Nc3 {[%emt 0:00:41] White is slightly better.} O-O {[%emt 0:00:17]} 9. h3 {[%emt 0:01:44]} Rb8 {[%emt 0:08:00]} 10. a4 {[%emt 0:03:20]} b6 {[%emt 0:01:15] [#]} 11. Be3 $146 {[%emt 0:04:06]} ({Predecessor:} 11. Re1 a5 12. Be3 Bb7 13. Qd2 Ne5 14. Rad1 Nfd7 15. d4 Nxf3+ 16. Bxf3 Bxd4 17. Bxd4 cxd4 18. Qxd4 {½-½ Mary,P (2476)-Almarza Mato,C (2090) Champion's League 12/C11 email 2012 [1]}) 11... Bb7 {[%emt 0:02:22]} 12. Rb1 {[%emt 0:06:31]} h6 {[%emt 0:13:36]} 13. Qd2 {[%emt 0:08:27]} Kh7 {[%emt 0:00:17]} 14. b4 {[%emt 0:06:56]} e6 {[%emt 0:04:28]} 15. Qc2 {[%emt 0:07:40]} Qe7 {[%emt 0:03:06]} (15... Ng8 $11) 16. Rb3 {[%emt 0:07:24]} (16. a5 $1 $16) 16... Ba8 {[%emt 0:17:32]} (16... d5 $5 17. e5 d4 18. exf6 Bxf6 $15) 17. Rfb1 {[%emt 0:12:35]} Rbc8 {[%emt 0:00:20]} 18. bxc5 {[%emt 0:10:11]} ({Better is} 18. a5 $1 $14) 18... bxc5 $11 {[%emt 0:00:11]} 19. Bf4 {[%emt 0:07:28]} d5 {[%emt 0:07:43]} 20. a5 {[%emt 0:01:58]} Bc6 {[%emt 0:02:53]} 21. Ra3 {[%emt 0:04:36]} Rfd8 {[%emt 0:00:55]} 22. Ne5 {[%emt 0:02:54]} Ba8 {[%emt 0:03:05]} (22... Nxe5 $15 23. Bxe5 dxc4 24. dxc4 Nd7) 23. Nxd7 $14 {[%emt 0:00:49]} Qxd7 {[%emt 0:00:24]} 24. e5 {[%emt 0:04:13] White is more active.} (24. cxd5 {feels hotter.} c4 25. dxc4 exd5 26. e5) 24... Ng8 {[%emt 0:00:54]} (24... Ne8 $1 $14) 25. cxd5 {[%emt 0:02:08]} Bxd5 {[%emt 0:00:30]} 26. Nxd5 {[%emt 0:02:45]} Qxd5 {[%emt 0:00:01]} 27. Bf3 {[%emt 0:00:11]} Qd4 {[%emt 0:00:11]} 28. Ra4 {[%emt 0:02:18]} Qxd3 {[%emt 0:00:17]} (28... Qd7 $16) 29. Qxd3 $18 {[%emt 0:00:19]} Rxd3 {[%emt 0:00:02] [#]} 30. Bb7 $2 {[%emt 0:01:19]} (30. Be2 $6 Rd4 31. Rxd4 cxd4 $16) ({White has to play} 30. Rb7 $1 $18) 30... Rb8 $11 {[%emt 0:00:35]} 31. Rb6 {[%emt 0:00:26]} Ne7 {[%emt 0:01:31]} 32. Bxa6 {[%emt 0:00:43] This pair of bishops is nice.} Rdd8 {[%emt 0:00:53]} (32... Rd1+ $15 {stays ahead.} 33. Kh2 Rxb6 34. axb6 Nd5) 33. Bb7 {[%emt 0:00:41]} (33. Rxb8 $16 Rxb8 34. Bf1) 33... Nd5 $14 {[%emt 0:00:40]} 34. Bxd5 {[%emt 0:00:11]} Rxb6 {[%emt 0:00:27]} 35. axb6 {[%emt 0:00:05]} Rxd5 {[%emt 0:00:26][%mdl 4096] Endgame KRB-KRB} 36. Ra1 {[%emt 0:01:14] Dodges Rd1+} Rd8 $2 {[%emt 0:00:11] Black is now going downhill.} ({Black should try} 36... c4 $1 $11) 37. Rb1 {[%emt 0:00:32]} (37. b7 $142 {aiming for Ra8.} g5 38. Ra8 Rd1+ 39. Kh2) 37... Rb8 {[%emt 0:00:21] [#]} (37... g5 $16 38. Be3 Bxe5) 38. Kf1 $1 $18 {[%emt 0:00:19]} (38. b7 g5 39. Be3 Bxe5) 38... Rb7 {[%emt 0:00:41]} 39. Ke2 {[%emt 0:00:05]} g5 {[%emt 0:00:11]} 40. Bh2 {[%emt 0:00:00] Kd3 would be deadly.} Kg6 {[%emt 0:00:00]} 41. Kd3 {[%emt 0:01:13]} Bf8 {[%emt 0:12:39]} 42. Kc4 {[%emt 0:01:02] Strongly threatening Kb5.} Rb8 $2 {[%emt 0:00:51]} (42... Be7 43. Kb5 Bd8 44. Kxc5 Bxb6+ 45. Rxb6 Rd7) 43. Kb5 {[%emt 0:05:10]} Kf5 {[%emt 0:00:44]} 44. f3 {[%emt 0:01:45]} c4 {[%emt 0:03:56]} 45. Kxc4 {[%emt 0:01:44]} Rc8+ {[%emt 0:00:07]} 46. Kb5 {[%emt 0:01:11]} Rc5+ {[%emt 0:04:29]} 47. Ka6 {[%emt 0:01:02]} Rc6 {[%emt 0:02:07]} 48. Rb5 {[%emt 0:04:34]} Be7 {[%emt 0:01:00]} 49. Ka7 {[%emt 0:03:17] And now b7 would win.} Bd8 {[%emt 0:01:22]} 50. b7 {[%emt 0:01:38]} Bc7 {[%emt 0:00:01]} 51. Rb2 $2 {[%emt 0:04:16]} (51. b8=R Bxb8+ 52. Rxb8 (52. Kxb8 Rc2 $18) 52... Rc2 $16) (51. b8=N Rc2 $18) (51. g4+ Kg6 52. Bg1 (52. b8=R Bxb8+ 53. Kxb8 Rc3 $16)) 51... Rc1 {[%emt 0:05:42] ( -> ...Ra1+)} 52. b8=Q {[%emt 0:00:14]} ({Much less strong is} 52. b8=R Bxb8+ 53. Kxb8 (53. Rxb8 Ra1+ 54. Kb6 Rh1 $14) 53... h5 $18) (52. b8=B Ra1+ 53. Kb7 Bxb8 $18) 52... Bxb8+ {[%emt 0:00:13]} 53. Kxb8 {[%emt 0:00:01] KRB-KR} ({Less strong is} 53. Rxb8 Ra1+ 54. Kb6 Rh1 $16) 53... h5 {[%emt 0:01:17]} 54. g4+ {[%emt 0:02:44]} Kg6 {[%emt 0:00:19]} 55. Rf2 {[%emt 0:01:51] Inhibits Rf1.} Rc3 {[%emt 0:02:19]} 56. Kb7 {[%emt 0:01:29]} h4 $2 {[%emt 0:00:55]} (56... Rc5 57. f4 hxg4 58. hxg4 gxf4 59. Bxf4 Rc3) 57. Kb6 {[%emt 0:00:24]} Rc1 {[%emt 0:01:35]} 58. Kb5 {[%emt 0:00:20]} Kg7 {[%emt 0:00:37]} (58... Ra1 $142 59. Kc5 Rd1) 59. Kb4 {[%emt 0:00:12]} Kg6 {[%emt 0:00:05]} 60. Kb3 {[%emt 0:00:04]} Ra1 {[%emt 0:00:33]} 61. Kb2 {[%emt 0:00:18]} Rh1 {[%emt 0:00:42]} 62. Kc2 {[%emt 0:01:14]} Ra1 {[%emt 0:00:20] Hoping for ...Ra2+.} 63. Kd3 {[%emt 0:01:26]} Ra3+ {[%emt 0:00:15]} 64. Ke2 {[%emt 0:00:05]} Ra1 {[%emt 0:00:04]} 65. Ke3 {[%emt 0:03:12]} Ra3+ {[%emt 0:00:19]} 66. Kd4 {[%emt 0:00:05]} Ra4+ {[%emt 0:01:16]} 67. Kc5 {[%emt 0:00:01]} Ra5+ {[%emt 0:00:15]} 68. Kb4 {[%emt 0:01:02]} Rd5 {[%emt 0:00:57]} 69. Kc4 {[%emt 0:01:02]} Ra5 {[%emt 0:00:06]} 70. Rf1 {[%emt 0:01:06]} Ra2 {[%emt 0:00:44]} 71. Bg1 {[%emt 0:00:07]} Rg2 {[%emt 0:00:29]} 72. Kd4 {[%emt 0:00:32]} Rd2+ {[%emt 0:00:46]} 73. Ke4 {[%emt 0:01:14]} Re2+ {[%emt 0:00:21]} 74. Kd4 {[%emt 0:01:31]} Rd2+ $1 {[%emt 0:00:10]} 75. Ke3 {[%emt 0:00:01]} Ra2 {[%emt 0:00:09]} 76. Rd1 {[%emt 0:00:15]} Rg2 {[%emt 0:00:34]} 77. Ke4 {[%emt 0:01:58]} Rg3 {[%emt 0:01:03]} 78. Ke3 {[%emt 0:00:14]} Rg2 $1 {[%emt 0:00:24]} 79. Rc1 {[%emt 0:00:16]} Kg7 {[%emt 0:00:52]} 80. Ke4 {[%emt 0:00:20]} Kg6 {[%emt 0:00:30]} 81. Be3 {[%emt 0:00:14]} Rh2 {[%emt 0:00:30]} 82. Rc8 {[%emt 0:00:04]} Kh7 {[%emt 0:00:35]} 83. Bxg5 {[%emt 0:00:18]} Rxh3 {[%emt 0:00:06]} 84. Bf6 {[%emt 0:00:16]} Rh1 {[%emt 0:00:14]} 85. Rh8+ {[%emt 0:00:27]} Kg6 {[%emt 0:00:01]} 86. Bxh4 {[%emt 0:00:40]} (86. g5 $142 Re1+ 87. Kf4 Re4+ 88. fxe4 h3 89. Rh6#) 86... Kg7 {[%emt 0:00:05]} 87. Rh5 {[%emt 0:00:59]} (87. Bf6+ $142 Kg6 88. Rg8+ Kh7 89. Rg7+ Kh6 90. Rxf7 Rg1 91. Re7 Kg6 92. Rxe6) 87... Kg6 {[%emt 0:00:10]} 88. Bf2 {[%emt 0:00:46]} Ra1 {[%emt 0:00:24]} 89. f4 {[%emt 0:00:15]} Ra2 {[%emt 0:00:16]} 90. Be3 {[%emt 0:00:21]} Ra4+ {[%emt 0:00:21]} 91. Kf3 {[%emt 0:00:06]} Ra5 {[%emt 0:00:20]} 92. f5+ {[%emt 0:01:39] White mates.} exf5 {[%emt 0:00:20]} 93. Rg5+ {[%emt 0:00:05]} Kh7 {[%emt 0:00:09]} 94. Rxf5 {[%emt 0:00:03]} Kg6 {[%emt 0:00:08] [#]} 95. e6 $1 {[%emt 0:00:54] Weighted Error Value: White=0.29 (precise) /Black=0.45} 1-0

[Event "European Women-ch 2023"]
[Site "Petrovac"]
[Date "2023.03.19"]
[Round "2.10"]
[White "Silva, Mariana Sofia T."]
[Black "Zherebtsova, Alexandra"]
[Result "0-1"]
[ECO "A55"]
[WhiteElo "1920"]
[BlackElo "2155"]
[Annotator "TA"]
[PlyCount "66"]
[EventDate "2023.03.15"]
[EventType "swiss"]
[EventCountry "MNE"]
[SourceTitle "playchess.com"]
[Source "ChessBase"]
[SourceQuality "1"]
[TimeControl "40/5400+30:1800+30"]

{[%evp 10,66,26,20,51,39,90,81,102,114,106,81,74,79,78,32,38,-28,-27,-116,-112,-107,-91,-170,-146,-152,-142,-274,-287,-393,-381,-398,-365,-360,-366,-362,-337,-974,-961,-932,-920,-1965,-2021,-1521,-1395,-1779,-732,-760,-742,-704,-538,-1416,-847,-824,-788,-1610,-879,-871,-810]} 1. d4 {[%emt 0:00:04]} Nf6 {[%emt 0:00:28]} 2. c4 {[%emt 0:00:09]} d6 {[%emt 0:00:24]} 3. Nf3 {[%emt 0:01:16]} Nbd7 {[%emt 0:00:54]} 4. Nc3 {[%emt 0:00:51]} e5 {[%emt 0:00:57]} 5. g3 {[%emt 0:03:24]} c6 {[%emt 0:01:26]} 6. e4 {[%emt 0:01:23]} exd4 {[%emt 0:22:11] A55: Old Indian Defence with Nf3 and e4.} 7. Nxd4 {[%emt 0:03:40]} Ne5 {[%emt 0:03:19] [#]} ({Black should play} 7... g6 $14) 8. h3 $146 {[%emt 0:13:41]} ({Predecessor:} 8. f4 Bg4 9. Be2 Bxe2 10. Qxe2 Ng6 11. Be3 Qa5 12. O-O-O O-O-O 13. Kb1 Re8 14. Qd3 {0-1 Jakovljevic,V (2412)-Bach,A (2251) EU-ch 11th Rijeka 2010 (9)}) 8... d5 {[%emt 0:12:13] White is better.} 9. cxd5 {[%emt 0:09:00]} cxd5 {[%emt 0:12:32]} 10. exd5 {[%emt 0:05:02] Black must now prevent Bb5+.} Bc5 {[%emt 0:08:15][%cal Oc5d4]} 11. Nb3 {[%emt 0:03:54]} Qe7 {[%emt 0:05:28][%cal Re5f3]} 12. Be2 {[%emt 0:04:57]} (12. Bb5+ $16 Bd7 13. Qe2) 12... Bb4 $14 {[%emt 0:03:55]} (12... Nf3+ $2 13. Kf1 Ne5 14. Nxc5 Qxc5 15. Be3 $18) 13. Be3 {[%emt 0:03:49]} (13. Kf1 $14) 13... O-O $1 $11 {[%emt 0:03:53]} 14. a3 {[%emt 0:05:07] Black converts the advantage convincingly.} (14. Bd4 $11 {remains equal.}) 14... Bxc3+ $17 {[%emt 0:00:57]} 15. bxc3 {[%emt 0:00:02] [#]} Rd8 $1 {[%emt 0:00:24]} 16. c4 {[%emt 0:12:12] [#]} (16. Bc5 $17 Qe8 17. Bd4) 16... b5 $1 {[%emt 0:01:12][%mdl 576] Deflection} 17. cxb5 {[%emt 0:06:21]} ({But not} 17. Bc5 $2 Qe8 18. f4 (18. cxb5 $2 {is the wrong capture.} Rxd5 19. Bd4 Nf3+ 20. Kf1 Nxd4 $19) 18... bxc4 19. fxe5 Qxe5 $19) 17... Nxd5 {[%emt 0:02:34] Black is more active. A dynamic duo of knights.} 18. Qd4 {[%emt 0:04:42] [#]} (18. Bc5 $17 {was worth a try.} Nf3+ 19. Kf1 Ne3+ {[%mdl 64] Discovered Attack} 20. Bxe3 Rxd1+ 21. Rxd1) 18... Bf5 $1 $19 {[%emt 0:10:43][%cal Of5d3]} 19. Qc5 {[%emt 0:11:55]} Qf6 {[%emt 0:02:18] ...Nd3+ is the strong threat.} 20. Bd4 {[%emt 0:03:24]} Rac8 {[%emt 0:02:40]} ({Don't go for} 20... Be4 $2 21. Bxe5 Qxe5 22. O-O $19) 21. Bxe5 {[%emt 0:00:48]} Qxe5 {[%emt 0:00:20]} 22. Qd4 {[%emt 0:00:56]} Qe7 {[%emt 0:01:32] Hoping for ...Nc3.} 23. Qh4 $2 {[%emt 0:02:37]} (23. Rc1 Nc3 24. Qe3) 23... g5 {[%emt 0:01:04] Black is clearly winning.} 24. Qh5 {[%emt 0:00:31]} Bg6 {[%emt 0:00:51]} 25. Qh6 {[%emt 0:00:40]} Nc3 {[%emt 0:00:36][%csl Gc3][%cal Re7e2]} 26. O-O {[%emt 0:01:48]} Nxe2+ {[%emt 0:00:05]} 27. Kh2 {[%emt 0:00:04]} Nd4 {[%emt 0:00:39]} (27... Nxg3 $142 28. Rg1 Ne4) 28. Nxd4 {[%emt 0:00:58]} Rxd4 {[%emt 0:00:02][%cal Bd8d4,Bd4d2,Bd2f2,Bf2g2,Bg2e2][%mdl 32]} 29. Rae1 {[%emt 0:00:13]} Qf6 {[%emt 0:00:16] And now ...Qd8 would win.} 30. Re3 {[%emt 0:00:31]} Rd2 {[%emt 0:00:33]} 31. Kg1 {[%emt 0:00:30] [#]} Rxf2 $3 {[%emt 0:02:11][%mdl 576] Deflection} 32. Rfe1 {[%emt 0:00:21] [#]} (32. Rxf2 Rc1+) 32... Rg2+ $3 {[%emt 0:00:49][%mdl 512]} 33. Kh1 {[%emt 0:00:41] [#]} (33. Kxg2 Be4+) 33... Re2 $3 {[%emt 0:00:16][%mdl 512] A superb game by Zherebtsova.   Weighted Error Value: White=1.11/Black=0.54} 0-1